bitfinex/quotes_ETHUSD_20220119
["timestamp","ask_amount","ask_price","bid_price","bid_amount"]
[1642585084180,3.1,3074.2,3074.1,23.70482108]
[1642585085020,3.1,3074.2,3074.1,25.00482108]
[1642585085622,3.1,3074.2,3074.1,25.30482108]
[1642585085823,3.1,3074.2,3074.1,25.00482108]
[1642585086022,3.1,3074.2,3074.1,25.13482108]
[1642585086826,3.1,3074.2,3074.1,25.43482108]
[1642585087727,3.1,3074.2,3074.1,25.13482108]
[1642585087927,3.1,3074.2,3074.1,24.83482108]
[1642585089571,3.1,3074.2,3074.1,20.63482108]
[1642585089773,3.1,3074.2,3074.1,20.93482108]
[1642585090371,3.1,3074.2,3074.1,20.80482108]
[1642585091183,3.1,3074.2,3074.1,19.50482108]
[1642585092822,3.1,3074.2,3074.1,0.47482108]
[1642585093022,5.86679889,3074.2,3074.1,0.47482108]
[1642585093422,3.1,3074.2,3074.1,0.47482108]
[1642585093625,5.86688662,3074.2,3074.1,0.47482108]
[1642585095723,5.86688662,3074.2,3074.1,19.50482108]
[1642585102630,5.86688662,3074.2,3074.1,21.23482108]
[1642585102830,3.1,3074.2,3074.1,21.23482108]
[1642585103429,5.86662106,3074.2,3074.1,21.23482108]
[1642585104872,5.86662106,3074.2,3074.1,21.228]
[1642585109922,5.86662106,3074.2,3074.1,20.928]
[1642585110521,5.86662106,3074.2,3074.1,20.798]
[1642585110921,5.86662106,3074.2,3074.1,21.098]
[1642585114377,5.86662106,3074.2,3074.1,0.468]
[1642585116628,5.99662106,3074.2,3074.1,0.468]
[1642585117226,5.99662106,3074.2,3074.1,19.498]
[1642585118228,5.86662106,3074.2,3074.1,19.498]
[1642585119881,5.86662106,3074.2,3074.1,21.228]
[1642585124432,5.86662106,3074.2,3074.1,19.498]
[1642585133878,5.86662106,3074.2,3074.1,0.468]
[1642585134080,5.86662106,3074.2,3074.0,0.00650618]
[1642585134376,2.89662106,3074.1,3074.0,0.00650618]
[1642585134776,2.89662106,3074.1,3074.0,0.01389569]
[1642585135178,4.53848235,3074.1,3074.0,0.01389569]
[1642585136178,4.53138034,3074.1,3074.0,0.01389569]
[1642585136579,2.89662106,3074.1,3074.0,0.01389569]
[1642585136778,4.53184935,3074.1,3074.0,0.01389569]
[1642585137180,2.89662106,3074.1,3074.0,0.01389569]
[1642585137527,4.5300673,3074.1,3074.0,0.01389569]
[1642585137927,2.89662106,3074.1,3074.0,0.01389569]
[1642585138432,2.76662106,3074.1,3074.0,0.01389569]
[1642585141480,2.76662106,3074.1,3074.0,0.82728569]
[1642585141881,2.76662106,3074.1,3074.0,0.01389569]
[1642585145729,2.89662106,3074.1,3074.0,0.01389569]
[1642585148536,2.76662106,3074.1,3074.0,0.01389569]
[1642585148788,2.76662106,3074.1,3074.0,0.82729569]
[1642585149176,2.76662106,3074.1,3074.0,0.01389569]
[1642585149676,2.76662106,3074.1,3074.0,0.82730569]
[1642585151282,2.76662106,3074.1,3074.0,3.15425164]
[1642585151486,2.76662106,3074.1,3074.0,4.75225164]
[1642585151688,3.1,3074.2,3074.1,7.1]
[1642585151883,3.1,3074.2,3074.1,10.77478038]
[1642585152082,1.63344624,3074.7,3074.3,1.65978091]
[1642585152283,1.63344624,3074.8,3074.5,19.84314]
[1642585152525,1.63344624,3074.8,3074.6,0.468]
[1642585152726,1.63344624,3074.8,3074.6,23.47357117]
[1642585152928,1.63344624,3074.8,3074.7,0.00341054]
[1642585153127,1.63344624,3074.8,3074.7,21.68993947]
[1642585153728,1.63344624,3074.8,3074.7,1.11657054]
[1642585154128,4.73344624,3074.8,3074.7,1.11657054]
[1642585155130,1.63344624,3074.8,3074.7,1.11657054]
[1642585155530,1.63344624,3074.9,3074.7,22.51673703]
[1642585155732,4.0333,3075.0,3074.8,4.54045221]
[1642585155930,4.0333,3075.0,3074.9,4.1014571]
[1642585156132,4.0333,3075.0,3074.9,4.10373079]
[1642585156589,4.0333,3075.0,3074.9,1.62846369]
[1642585156783,4.0333,3075.0,3074.9,1.92846369]
[1642585161834,4.0333,3075.0,3074.9,0.30227369]
[1642585165878,4.0333,3075.0,3074.9,0.00227369]
[1642585167929,4.0333,3075.0,3074.9,0.30227369]
[1642585168932,4.0333,3075.0,3074.9,6.28336369]
[1642585169131,2.0092195,3075.0,3074.9,25.31336369]
[1642585169731,2.0092195,3075.0,3074.9,25.44336369]
[1642585170135,1.63344624,3075.5,3075.0,7.15]
[1642585170339,2.48790785,3076.8,3075.1,2.22379]
[1642585170340,1.63344624,3075.7,3075.1,2.22379]
[1642585170539,1.63344624,3075.8,3075.2,2.22490178]
[1642585170738,0.13,3076.2,3075.2,2.22490178]
[1642585170739,0.00227369,3075.7,3075.3,19.628]
[1642585170940,1.63571993,3075.7,3075.3,19.798]
[1642585171138,0.00170527,3075.6,3075.3,20.098]
[1642585171384,0.00170527,3075.6,3075.4,19.84299]
[1642585171589,0.00113685,3075.5,3075.4,20.97299]
[1642585171783,0.00113685,3075.5,3075.4,21.44099]
[1642585171983,0.00113685,3075.5,3075.4,20.44099]
[1642585172186,0.00113685,3075.5,3075.4,21.44099]
[1642585172886,2.76714024,3075.5,3075.4,21.44099]
[1642585173186,0.00113685,3075.5,3075.4,21.44099]
[1642585176737,0.00113685,3075.5,3075.4,20.44099]
[1642585177137,0.00113685,3075.5,3075.4,20.31099]
[1642585178138,0.00113685,3075.5,3075.4,21.31099]
[1642585178338,0.00113685,3075.5,3075.4,22.29289]
[1642585179579,0.00113685,3075.5,3075.4,21.29289]
[1642585179781,0.00113685,3075.5,3075.4,20.31099]
[1642585181388,0.00113685,3075.5,3075.4,21.44099]
[1642585181588,2.76598281,3075.9,3075.6,0.81274]
[1642585181789,0.13,3076.0,3075.7,0.73619996]
[1642585181990,0.00170527,3075.8,3075.7,0.73619996]
[1642585182290,0.13,3076.0,3075.9,27.55718316]
[1642585182535,0.13,3076.0,3075.9,29.62518316]
[1642585182732,1.63344624,3077.0,3076.5,0.81265]
[1642585182933,2.76531251,3076.9,3076.5,1.28065]
[1642585183132,2.76531251,3076.8,3076.5,1.28065]
[1642585183532,0.00397897,3076.7,3076.6,19.03]
[1642585183733,2.76929148,3076.7,3076.6,19.03]
[1642585184631,2.76929148,3076.7,3076.6,20.928]
[1642585184831,2.76929148,3076.7,3076.6,21.228]
[1642585185432,2.76894981,3076.7,3076.6,21.228]
[1642585185834,2.76894981,3076.7,3076.6,0.468]
[1642585186035,2.76894981,3076.7,3076.6,1.28071]
[1642585187890,2.76894981,3076.7,3076.6,1.58071]
[1642585188286,2.76894981,3076.7,3076.6,1.88071]
[1642585188485,2.76894981,3076.7,3076.6,1.58071]
[1642585188887,2.76894981,3076.7,3076.6,1.88071]
[1642585189085,2.76894981,3076.7,3076.6,20.91071]
[1642585189686,2.76894981,3076.7,3076.6,1.88071]
[1642585191340,2.76894981,3076.7,3076.6,1.58071]
[1642585192540,2.76894981,3076.7,3076.6,2.01071]
[1642585195185,2.76894981,3076.7,3076.6,1.71071]
[1642585196786,2.76894981,3076.7,3076.6,1.24271]
[1642585201305,2.76894981,3076.7,3076.6,0.43]
[1642585201498,2.76894981,3076.7,3076.6,0.3]
[1642585202096,2.76926933,3076.7,3076.6,0.3]
[1642585205537,2.76911039,3076.7,3076.6,0.3]
[1642585210892,2.76911039,3076.7,3076.6,1.470084]
[1642585211094,2.76911039,3076.7,3076.6,24.27542046]
[1642585211995,2.76911039,3076.7,3076.6,23.27542046]
[1642585212195,2.76911039,3076.7,3076.6,23.14542046]
[1642585212395,2.76911039,3076.7,3076.6,1.770084]
[1642585213235,2.76911039,3076.7,3076.6,0.6]
[1642585213436,2.76513142,3076.7,3076.6,0.6]
[1642585214037,2.76513142,3076.7,3076.6,1.41259]
[1642585214242,1.63344624,3077.1,3076.7,2.4377246]
[1642585214438,1.63344624,3077.1,3076.9,1.98616865]
[1642585214638,0.00568424,3077.0,3076.9,2.28616865]
[1642585214836,0.00568424,3077.0,3076.9,3.09871865]
[1642585215038,1.63913048,3077.0,3076.9,3.09871865]
[1642585215737,1.63913048,3077.0,3076.9,3.91126505]
[1642585215936,1.63913048,3077.0,3076.9,22.94126505]
[1642585216136,1.63913048,3077.0,3076.9,23.40926505]
[1642585216137,0.00568424,3077.0,3076.9,23.40926505]
[1642585216394,3.25118307,3077.5,3076.9,23.40926505]
[1642585216395,0.1298,3077.5,3077.0,4.65]
[1642585216597,0.1298,3077.5,3077.2,19.84234]
[1642585216799,4.87591307,3077.8,3077.3,20.498]
[1642585216800,4.10107923,3077.8,3077.3,20.498]
[1642585217000,2.47634923,3078.1,3077.4,1.96939569]
[1642585217198,2.47634923,3078.2,3077.5,23.0086]
[1642585217392,2.47634923,3078.2,3077.6,0.468]
[1642585217593,0.0073895,3078.3,3078.0,19.8421]
[1642585217793,0.0073895,3078.3,3078.1,0.5978]
[1642585217996,0.81212,3078.5,3078.1,1.8978]
[1642585218195,3.25118307,3078.6,3078.2,1.6242058]
[1642585218396,0.1298,3078.7,3078.3,19.498]
[1642585218397,0.00113685,3078.4,3078.3,19.498]
[1642585218598,3.38098307,3079.0,3078.4,24.04209]
[1642585218803,3.25118307,3079.2,3078.5,1.4098708]
[1642585218997,0.00113684,3078.6,3078.5,2.7098708]
[1642585219195,3.25118307,3079.4,3078.6,5.6270184]
[1642585219400,0.00284212,3079.1,3078.7,3.47402771]
[1642585219597,0.00284212,3079.1,3078.7,8.83372771]
[1642585219795,0.0022737,3079.0,3078.8,2.07912249]
[1642585220037,0.0022737,3079.0,3078.9,22.1477694]
[1642585220239,0.1298,3079.5,3078.9,23.7714246]
[1642585220439,0.1298,3079.5,3079.0,1.1298]
[1642585220642,3.25118307,3079.9,3079.2,7.15]
[1642585220840,3.25118307,3079.9,3079.7,2.5434106]
[1642585221038,3.25118307,3080.0,3079.8,17.80868734]
[1642585221240,3.25118307,3080.2,3079.9,4.26114367]
[1642585221442,3.25118307,3080.2,3079.9,18.87031146]
[1642585221443,0.00341054,3080.0,3079.9,18.87031146]
[1642585221645,0.00341054,3080.0,3079.9,19.17031146]
[1642585222046,3.25118307,3080.7,3080.0,3.9]
[1642585222242,3.25118307,3080.9,3080.2,15.42078489]
[1642585222444,0.00341054,3080.6,3080.3,3.81080082]
[1642585222642,0.00341054,3080.6,3080.3,18.71996861]
[1642585222842,0.00284212,3080.5,3080.3,1.57961]
[1642585223044,0.00284212,3080.5,3080.3,2.39123]
[1642585223244,0.0022737,3080.4,3080.2,20.59143429]
[1642585223447,0.0022737,3080.4,3080.3,0.468]
[1642585223644,0.1298,3080.6,3080.3,0.468]
[1642585224108,0.13321054,3080.6,3080.3,0.468]
[1642585224714,0.13321054,3080.6,3080.3,24.56724123]
[1642585224910,0.00341054,3080.6,3080.3,24.56724123]
[1642585225114,0.00341054,3080.6,3080.3,24.69704123]
[1642585225313,0.00341054,3080.6,3080.3,24.99704123]
[1642585226119,0.00341054,3080.6,3080.5,19.03]
[1642585226317,0.00341054,3080.6,3080.5,19.498]
[1642585226518,0.00341054,3080.6,3080.5,19.798]
[1642585226719,0.00341054,3080.6,3080.5,20.1242]
[1642585227953,0.00341054,3080.6,3080.5,21.1242]
[1642585228750,0.1298,3081.1,3080.7,3.14264921]
[1642585228956,0.1298,3081.4,3080.9,1.31861004]
[1642585229152,0.1298,3081.4,3081.0,2.8619009]
[1642585229356,2.76211221,3081.3,3081.0,21.8919009]
[1642585229554,2.76211221,3081.3,3081.0,19.498]
[1642585229857,2.76552275,3081.2,3081.0,19.498]
[1642585230054,2.76211221,3081.1,3081.0,19.498]
[1642585230255,2.76495433,3081.1,3081.0,24.19578146]
[1642585230456,2.76495433,3081.1,3081.0,25.19578146]
[1642585230457,0.00284212,3081.1,3081.0,25.19578146]
[1642585230654,0.00284212,3081.1,3081.0,24.19578146]
[1642585230953,0.00284212,3081.1,3081.0,22.9321408]
[1642585231395,0.1298,3081.7,3081.2,19.03]
[1642585231396,2.76211221,3081.3,3081.2,19.03]
[1642585231594,2.76211221,3081.3,3081.2,21.93173]
[1642585231794,2.76134337,3081.8,3081.4,1.74876751]
[1642585231995,0.1298,3081.7,3081.5,0.468]
[1642585232295,1.62915576,3082.0,3081.5,0.468]
[1642585232296,0.00284211,3081.8,3081.5,0.468]
[1642585232498,0.1298,3081.7,3081.5,0.468]
[1642585232694,0.13207369,3081.7,3081.5,0.468]
[1642585232895,0.00170527,3081.6,3081.5,2.09057]
[1642585233297,0.00170527,3081.6,3081.4,0.85606745]
[1642585233499,0.00170527,3081.6,3081.5,0.468]
[1642585233699,0.1298,3081.8,3081.5,0.468]
[1642585233899,0.1298,3082.2,3081.5,0.468]
[1642585234101,0.00341054,3081.9,3081.5,0.468]
[1642585234303,0.1297,3081.8,3081.5,2.09057]
[1642585234500,0.13254211,3081.8,3081.5,2.09057]
[1642585234704,0.00227369,3081.7,3081.5,2.09057]
[1642585235143,0.00170527,3081.6,3081.5,2.09057]
[1642585235339,0.00170527,3081.6,3081.5,2.39057]
[1642585235939,0.00170527,3081.6,3081.4,0.45099931]
[1642585236240,0.00113684,3081.5,3081.4,0.91899931]
[1642585236645,0.00113684,3081.5,3081.4,2.54163931]
[1642585237243,0.00113684,3081.5,3081.4,2.84163931]
[1642585237648,0.00113684,3081.5,3081.4,21.87163931]
[1642585238344,0.00113684,3081.5,3081.4,23.12153615]
[1642585239197,0.49882229,3082.5,3081.5,7.15]
[1642585239395,0.49882229,3082.5,3082.2,1.18426656]
[1642585239590,0.49882229,3082.5,3082.3,0.468]
[1642585240892,0.17064849,3082.2,3081.9,0.6]
[1642585241192,0.00341055,3082.1,3082.0,0.468]
[1642585243441,0.00341055,3082.1,3081.9,0.6]
[1642585243640,0.00341055,3082.1,3082.0,0.468]
[1642585243841,0.00284212,3082.0,3081.8,1.05013871]
[1642585244042,0.00284212,3082.0,3081.9,0.468]
[1642585244240,0.17064849,3082.2,3081.9,0.468]
[1642585244639,0.00341055,3082.1,3081.9,0.468]
[1642585245042,0.00284212,3082.0,3081.9,0.768]
[1642585245244,0.00284212,3082.0,3081.9,1.068]
[1642585245943,0.00284212,3082.0,3081.9,3.3420309]
[1642585246718,0.00284212,3082.0,3081.9,3.36852886]
[1642585246917,0.00284212,3082.0,3081.9,2.90052886]
[1642585247917,0.00284212,3082.0,3081.9,3.36852886]
[1642585249720,0.00284212,3082.0,3081.9,4.17966886]
[1642585250935,0.00284212,3082.0,3081.8,21.22607613]
[1642585251135,0.00284212,3082.0,3081.9,20.098]
[1642585251343,2.76075618,3082.1,3081.9,20.098]
[1642585251541,2.76075618,3082.1,3081.9,21.7202421]
[1642585252140,2.76075618,3082.1,3082.0,0.3]
[1642585252340,2.76075618,3082.1,3082.0,0.768]
[1642585252542,2.76416673,3082.1,3082.0,0.768]
[1642585252744,2.89386673,3082.1,3082.0,0.468]
[1642585252943,2.89386673,3082.1,3081.8,3.94802783]
[1642585253148,2.89045618,3082.0,3081.8,3.94802783]
[1642585253346,2.76075618,3081.9,3081.8,3.94802783]
[1642585253542,2.76302988,3081.9,3081.7,19.03]
[1642585253788,0.0022737,3081.9,3081.7,18.20960199]
[1642585253987,0.00170527,3081.8,3081.7,18.50960199]
[1642585254388,0.00284212,3081.8,3081.7,18.50960199]
[1642585254587,2.76360779,3081.8,3081.7,18.50960199]
[1642585254789,2.76360779,3081.8,3081.7,19.32084199]
[1642585255389,2.76360779,3081.8,3081.7,19.62084199]
[1642585255591,2.76360779,3081.8,3081.7,20.62084199]
[1642585255792,0.00284212,3081.8,3081.7,20.75054199]
[1642585257195,7.53e-06,3082.1,3081.8,7.15]
[1642585257396,0.49882229,3082.5,3082.0,5.853]
[1642585257641,0.49882229,3082.5,3082.2,18.20960199]
[1642585257941,1.62915576,3083.2,3082.4,18.20960199]
[1642585258141,0.47581743,3083.2,3082.5,19.80730199]
[1642585258337,0.00397896,3083.1,3082.7,1.27598388]
[1642585258550,0.47581743,3083.2,3082.9,7.96079]
[1642585258744,1.743e-05,3083.2,3083.0,0.5977]
[1642585258938,1.743e-05,3083.2,3083.1,18.20960199]
[1642585259138,0.48454577,3083.5,3083.2,5.95]
[1642585259338,0.48454577,3083.5,3083.3,0.5977]
[1642585259542,0.48454577,3083.5,3083.3,24.67150129]
[1642585259746,0.48454577,3083.5,3083.3,25.27150129]
[1642585259946,0.48454577,3083.5,3083.3,6.4618993]
[1642585260146,0.48454577,3083.5,3083.4,0.6]
[1642585260349,2.44374964,3083.7,3083.4,20.90876]
[1642585260547,2.44374964,3083.7,3083.5,2.6215385]
[1642585260751,0.81187685,3083.6,3083.5,1.6215385]
[1642585260949,3.54157685,3083.6,3083.5,0.468]
[1642585261151,5.98532649,3083.6,3083.4,0.3]
[1642585261590,2.44374964,3083.5,3083.4,0.3]
[1642585261791,0.94157685,3083.6,3083.4,2.84131984]
[1642585261992,0.81187685,3083.6,3083.4,0.6]
[1642585262593,0.00113685,3083.6,3083.5,21.7816407]
[1642585262793,0.00113685,3083.6,3083.5,21.34364]
[1642585263195,0.00113685,3083.6,3083.5,22.34364]
[1642585263394,0.47929367,3083.7,3083.6,7.15]
[1642585263597,3.25118307,3084.4,3083.7,7.26053]
[1642585263796,0.1295,3084.3,3083.8,0.468]
[1642585263993,0.1295,3084.3,3083.9,0.81069]
[1642585264197,0.1295,3084.4,3084.1,1.18037446]
[1642585264394,0.81055,3084.4,3084.2,0.468]
[1642585264595,0.81509738,3084.4,3084.2,19.498]
[1642585264795,0.81509738,3084.4,3084.2,0.768]
[1642585265439,0.00454738,3084.4,3084.2,20.60852]
[1642585265641,0.00454738,3084.4,3084.3,24.6713192]
[1642585265844,0.00454738,3084.4,3084.3,25.1393192]
[1642585266044,0.00454738,3084.4,3084.3,19.498]
[1642585266450,0.1295,3084.7,3084.5,19.03]
[1642585266645,0.48914947,3084.8,3084.6,19.498]
[1642585266847,0.48914947,3084.8,3084.7,0.468]
[1642585267044,0.48914947,3084.8,3084.6,18.89683098]
[1642585267246,0.49142317,3084.8,3084.7,0.468]
[1642585267443,0.49142317,3084.8,3084.7,0.768]
[1642585268887,0.49142317,3084.8,3084.7,19.66483098]
[1642585269893,1.63140251,3085.0,3084.9,18.89683098]
[1642585269894,0.48615005,3085.0,3084.9,18.89683098]
[1642585270093,0.48615005,3085.0,3084.9,21.47517098]
[1642585270294,0.4872869,3085.0,3084.9,21.77517098]
[1642585271294,0.4872869,3085.0,3084.9,23.31381344]
[1642585271794,0.4872869,3085.0,3084.9,22.31381344]
[1642585274746,0.00113685,3085.0,3084.9,22.31381344]
[1642585275345,0.00113685,3085.0,3084.9,20.77517098]
[1642585276828,0.00113685,3085.0,3084.9,20.30717098]
[1642585277421,0.1295,3085.6,3085.0,5.75]
[1642585277623,2.47404532,3085.5,3085.3,0.81023]
[1642585277824,2.47404532,3085.5,3085.4,3.618]
[1642585277825,0.00284211,3085.5,3085.4,3.618]
[1642585278023,0.00284211,3085.5,3085.4,22.81483098]
[1642585278223,0.00284211,3085.5,3085.4,19.66483098]
[1642585279922,2.47468105,3085.5,3085.4,19.66483098]
[1642585281142,2.47468105,3085.5,3085.4,15.25284208]
[1642585282151,2.47468105,3085.5,3085.4,15.72084208]
[1642585282353,0.00284211,3085.5,3085.4,15.72084208]
[1642585282550,0.00284211,3085.5,3085.4,16.85034208]
[1642585282748,2.45454572,3086.2,3085.6,15.25284208]
[1642585282949,2.45454572,3086.2,3085.8,0.8101]
[1642585283149,2.45454572,3086.1,3085.9,0.468]
[1642585283349,2.45454572,3086.0,3085.9,0.468]
[1642585283549,2.45738784,3086.0,3085.9,0.468]
[1642585284191,2.45738784,3086.0,3085.8,2.91225412]
[1642585284390,0.00284212,3086.0,3085.9,1.27809]
[1642585284592,0.1295,3086.5,3085.9,1.27809]
[1642585284797,0.62731998,3086.6,3086.0,19.8400287]
[1642585285090,0.62731998,3086.6,3086.1,19.498]
[1642585285091,0.00454739,3086.3,3086.1,19.498]
[1642585285291,0.00454739,3086.3,3086.1,21.92797]
[1642585285594,0.49781998,3086.6,3086.2,8.35637016]
[1642585285793,0.49781998,3086.6,3086.3,0.468]
[1642585285991,0.1295,3087.3,3086.4,7.15]
[1642585286191,0.1295,3087.4,3086.6,1.7030439]
[1642585286392,0.00284211,3087.0,3086.7,3.18111252]
[1642585286594,0.00284211,3087.0,3086.8,0.468]
[1642585286791,0.1295,3087.6,3086.8,0.468]
[1642585286792,0.00227369,3086.9,3086.8,0.768]
[1642585287397,0.00227369,3086.9,3086.8,22.26082679]
[1642585287675,0.00227369,3086.9,3086.8,19.798]
[1642585288779,0.48141308,3087.6,3086.9,7.15]
[1642585288978,0.48141308,3087.6,3087.0,22.18656416]
[1642585289177,0.48141308,3087.6,3087.2,19.03]
[1642585289376,0.48141308,3087.6,3087.3,0.5975]
[1642585289578,0.48141308,3087.6,3087.3,1.8975]
[1642585289876,0.48141308,3087.6,3087.5,19.03]
[1642585290081,0.48141308,3087.6,3087.5,20.798]
[1642585290276,0.48539205,3087.6,3087.5,20.798]
[1642585291289,0.48539205,3087.6,3087.5,19.798]
[1642585291500,0.50969303,3087.7,3087.6,26.18]
[1642585291697,0.48716786,3088.3,3087.7,7.39553696]
[1642585291895,0.48716786,3088.3,3087.9,1.43121531]
[1642585292094,0.00341054,3088.2,3088.0,21.11691]
[1642585292494,0.00284211,3088.1,3088.0,22.91158498]
[1642585292796,0.00284211,3088.1,3088.0,21.11691]
[1642585292993,0.00284211,3088.1,3088.0,22.11691]
[1642585294392,0.00284211,3088.1,3088.0,23.8423026]
[1642585294594,0.00284211,3088.1,3088.0,23.87727802]
[1642585294794,0.00284211,3088.1,3088.0,23.8423026]
[1642585295037,0.00284211,3088.1,3088.0,22.11691]
[1642585295842,0.00284211,3088.1,3088.0,22.15288997]
[1642585296044,0.00284211,3088.1,3088.0,16.2749314]
[1642585296244,0.00284211,3088.1,3088.0,22.15629653]
[1642585296444,0.00284211,3088.1,3088.0,24.19236085]
[1642585297646,0.00284211,3088.1,3088.0,0.468]
[1642585298443,3.40284211,3088.1,3088.0,0.468]
[1642585298643,0.00284211,3088.1,3088.0,0.468]
[1642585299591,1.86938353,3088.1,3088.0,0.468]
[1642585300698,0.00284211,3088.1,3088.0,0.468]
[1642585302098,1.29669786,3088.3,3088.0,0.468]
[1642585303346,0.1295,3088.2,3088.0,0.468]
[1642585303742,0.1295,3088.2,3087.9,1.619299]
[1642585304944,0.1295,3088.2,3088.0,0.3]
[1642585305145,0.1295,3088.2,3088.0,1.9191927]
[1642585305647,0.1295,3088.2,3088.0,2.7287727]
[1642585307093,0.15836716,3088.2,3088.0,1.9191927]
[1642585307292,1.29669786,3088.3,3088.0,1.9191927]
[1642585307693,1.29669786,3088.3,3087.9,1.78693539]
[1642585308091,1.29669786,3088.3,3087.9,2.59655539]
[1642585308292,1.29669786,3088.3,3087.9,1.109639]
[1642585308995,1.29669786,3088.3,3087.9,0.3]
[1642585309194,1.29669786,3088.3,3087.9,0.6]
[1642585309597,1.29669786,3088.3,3087.9,1.4097]
[1642585310644,1.29669786,3088.3,3087.9,2.2194221]
[1642585311147,1.29669786,3088.3,3087.6,1.17940757]
[1642585311344,1.29669786,3088.3,3087.7,0.80967]
[1642585311544,0.1295,3088.2,3087.7,0.81194369]
[1642585311745,0.93921,3088.2,3087.9,1.6194221]
[1642585311945,0.80971,3088.2,3087.9,1.6194221]
[1642585312547,0.80971,3088.2,3087.8,1.61915]
[1642585312747,0.95178492,3088.2,3087.7,0.00227369]
[1642585312952,7.15,3088.1,3087.2,0.1295]
[1642585313149,0.80994,3087.9,3087.6,0.00170527]
[1642585313348,0.1295,3087.8,3087.6,0.00170527]
[1642585313547,0.1295,3087.8,3087.1,0.00454739]
[1642585314194,0.93936,3087.8,3087.3,0.80986]
[1642585314597,0.93936,3087.8,3087.4,0.00284212]
[1642585314796,0.80986,3087.8,3087.4,0.00284212]
[1642585314997,0.1295,3087.7,3087.4,0.00284212]
[1642585315197,0.1295,3087.7,3087.2,0.30397897]
[1642585315399,0.1295,3087.7,3087.3,0.00341054]
[1642585315601,1.6197,3087.6,3087.3,0.00341054]
[1642585316404,1.6197,3087.6,3087.4,0.80984]
[1642585316902,1.6197,3087.6,3087.5,0.0022737]
[1642585317741,1.6197,3087.6,3087.3,0.80991]
[1642585318143,1.6197,3087.6,3087.4,0.3]
[1642585319745,1.6197,3087.6,3087.3,1.6198055]
[1642585320543,1.6197,3087.6,3087.3,2.4296155]
[1642585320745,1.6197,3087.6,3087.4,0.3]
[1642585322248,1.5138046,3087.5,3087.4,0.3]
[1642585326251,2.21270669,3087.5,3087.3,0.79377071]
[1642585326457,1.63811189,3088.4,3087.5,0.03081032]
[1642585326656,1.63811189,3088.5,3087.6,0.5973]
[1642585326857,1.64031672,3088.6,3088.0,0.01227071]
[1642585327052,1.65170266,3088.9,3088.1,0.5973]
[1642585327257,0.01138594,3088.9,3088.7,1.30657448]
[1642585327451,0.00625267,3088.8,3088.6,1.6186815]
[1642585327651,0.00625267,3088.8,3088.7,0.468]
[1642585327851,1.65170266,3088.9,3088.8,0.1295]
[1642585328053,0.01138594,3088.9,3088.8,0.5975]
[1642585328256,1.65852375,3088.9,3088.8,0.468]
[1642585328801,2.46131413,3088.9,3088.7,0.3]
[1642585329008,1.65932322,3088.9,3088.7,0.3]
[1642585329204,1.64736886,3088.8,3088.7,0.3]
[1642585329610,0.00625267,3088.8,3088.7,0.3]
[1642585329803,2.44935977,3088.8,3088.7,0.3]
[1642585330003,0.00625267,3088.8,3088.7,0.3]
[1642585330803,0.00625267,3088.8,3088.7,0.6]
[1642585330804,2.44935977,3088.8,3088.7,0.6]
[1642585331203,0.00625267,3088.8,3088.7,0.6]
[1642585332410,0.00625267,3088.8,3088.7,0.3]
[1642585332641,3.29097947,3088.8,3088.7,0.3]
[1642585333241,0.00625267,3088.8,3088.7,0.3]
[1642585333540,0.00625267,3088.8,3088.3,1.2775636]
[1642585333541,3.29097947,3088.8,3088.3,1.2775636]
[1642585333740,1.64316015,3088.4,3088.3,1.2775636]
[1642585333941,3.27433023,3088.6,3088.3,2.3871336]
[1642585334145,0.00397897,3088.4,3088.3,2.3871336]
[1642585334344,0.0045474,3088.5,3088.3,2.3871336]
[1642585334544,2.4526801,3088.6,3088.3,2.0871336]
[1642585334545,0.00397897,3088.4,3088.3,2.0871336]
[1642585335045,0.00397897,3088.4,3088.3,3.1967236]
[1642585335247,0.00397897,3088.4,3088.3,3.4967236]
[1642585336294,0.00397897,3088.4,3088.3,5.83411699]
[1642585336497,0.00397897,3088.4,3088.3,3.4967236]
[1642585338300,0.00397897,3088.4,3088.3,2.6871536]
[1642585338500,0.00397897,3088.4,3088.3,1.87759]
[1642585339305,0.00397897,3088.4,3088.3,1.57759]
[1642585339803,0.00397897,3088.4,3088.3,1.10959]
[1642585343993,0.00397897,3088.4,3088.3,2.62829142]
[1642585344196,0.00397897,3088.4,3088.3,5.57829142]
[1642585344397,0.00397897,3088.4,3088.3,5.87829142]
[1642585344601,0.00397897,3088.4,3088.3,8.16971266]
[1642585344798,0.00397897,3088.4,3088.3,5.87829142]
[1642585344998,0.00397897,3088.4,3088.3,2.62829142]
[1642585345197,0.00397897,3088.4,3088.3,1.10959]
[1642585346599,1.30637234,3088.4,3088.3,1.10959]
[1642585346800,0.00397897,3088.4,3088.3,1.10959]
[1642585347003,1.30637234,3088.4,3088.3,4.27759]
[1642585347200,0.00397897,3088.4,3088.3,4.27759]
[1642585347401,1.30637234,3088.4,3088.3,4.27759]
[1642585347640,0.00397897,3088.4,3088.3,4.27759]
[1642585347841,1.30637234,3088.4,3088.3,4.27759]
[1642585348042,0.00397897,3088.4,3088.3,1.57759]
[1642585348242,1.30637234,3088.4,3088.3,1.57759]
[1642585348441,0.00397897,3088.4,3088.3,1.57759]
[1642585348642,1.30637234,3088.4,3088.3,1.57759]
[1642585348842,0.00397897,3088.4,3088.3,1.57759]
[1642585349342,1.30637234,3088.4,3088.3,1.57759]
[1642585349546,0.00397897,3088.4,3088.3,1.57759]
[1642585349743,1.30637234,3088.4,3088.3,1.57759]
[1642585349942,0.00397897,3088.4,3088.3,1.57759]
[1642585350342,1.30637234,3088.4,3088.3,1.57759]
[1642585350747,0.00397897,3088.4,3088.3,1.57759]
[1642585350945,0.00397897,3088.4,3088.3,5.07759]
[1642585350946,1.30637234,3088.4,3088.3,5.07759]
[1642585351147,0.00397897,3088.4,3088.3,5.07759]
[1642585351398,1.30637234,3088.4,3088.3,5.07759]
[1642585351600,0.00397897,3088.4,3088.3,5.07759]
[1642585351798,1.30637234,3088.4,3088.3,1.57759]
[1642585351997,0.00397897,3088.4,3088.3,1.57759]
[1642585352202,1.30637234,3088.4,3088.3,1.57759]
[1642585352399,0.00397897,3088.4,3088.3,1.57759]
[1642585352598,1.30637234,3088.4,3088.3,1.57759]
[1642585352798,0.00397897,3088.4,3088.3,4.17759]